bitfinex-derivatives/quotes_ETHF0:USTF0_20251009
["timestamp","ask_amount","ask_price","bid_price","bid_amount"]
[1759988716251,3.30004351,4449.4,4449.3,1.38195477]
[1759988718152,3.30004351,4449.4,4449.3,0.97748477]
[1759988718354,3.30004351,4449.4,4449.3,0.76368477]
[1759988718547,3.30004351,4449.4,4449.3,1.16815477]
[1759988718748,3.30004351,4449.4,4449.3,0.76368477]
[1759988719048,3.30004351,4449.4,4449.3,0.53868477]
[1759988719255,3.30004351,4449.4,4449.3,0.76368477]
[1759988719852,3.30004351,4449.4,4449.3,1.16815477]
[1759988720853,3.30004351,4449.4,4449.3,0.94315477]
[1759988721151,3.30004351,4449.4,4449.3,1.16815477]
[1759988721453,3.30004351,4449.4,4449.3,0.76368477]
[1759988721653,3.30004351,4449.4,4449.3,1.16815477]
[1759988722553,3.30004351,4449.4,4449.3,1.38015477]
[1759988724355,3.30004351,4449.4,4449.3,1.15515477]
[1759988724550,3.30004351,4449.4,4449.3,1.38015477]
[1759988724850,3.30004351,4449.4,4449.3,1.15515477]
[1759988725052,3.30004351,4449.4,4449.3,1.38015477]
[1759988729066,3.30004351,4449.4,4449.3,0.97568477]
[1759988729257,3.30004351,4449.4,4449.3,1.38015477]
[1759988729551,3.30004351,4449.4,4449.3,1.15515477]
[1759988729757,3.30004351,4449.4,4449.3,1.38015477]
[1759988732848,3.30004351,4449.4,4448.9,1.01127]
[1759988732849,8.90676351,4449.4,4448.9,0.3275]
[1759988733054,0.40455,4448.4,4448.3,0.3275]
[1759988733254,1.27159969,4448.4,4448.3,0.3275]
[1759988733449,4.24555494,4448.4,4448.3,0.3275]
[1759988733654,4.76290414,4448.4,4448.3,0.3275]
[1759988733951,4.76290414,4448.4,4448.3,0.00211488]
[1759988734155,9.76290414,4448.4,4448.3,0.00211488]
[1759988734756,9.98790414,4448.4,4448.3,0.00211488]
[1759988735352,9.98790414,4448.4,4447.7,0.3275]
[1759988735353,0.40461,4447.8,4447.7,0.3275]
[1759988735547,1.27165969,4447.8,4447.6,0.084]
[1759988735850,0.40465,4447.4,4447.3,0.225]
[1759988736048,1.27169969,4447.4,4447.3,0.225]
[1759988736251,4.17611085,4447.4,4447.3,0.55511093]
[1759988736661,3.77146085,4447.4,4447.3,0.55511093]
[1759988736855,2.90441116,4447.4,4447.3,0.77771093]
[1759988737362,3.33138256,4447.5,4447.4,0.3275]
[1759988737748,0.40464,4447.5,4447.4,0.3275]
[1759988737948,3.33138256,4447.5,4447.4,0.3275]
[1759988739654,3.33138256,4447.5,4447.3,0.00261093]
[1759988740759,0.40469,4446.9,4446.8,0.225]
[1759988740959,0.40469,4446.9,4446.8,0.5417]
[1759988741264,0.40472,4446.6,4446.5,0.6773]
[1759988741557,3.30021065,4446.6,4446.5,0.9046]
[1759988741768,2.89549065,4446.6,4446.5,0.9070901]
[1759988741966,2.89549065,4446.6,4446.5,1.1193901]
[1759988742161,2.89549065,4446.7,4446.6,1.16102]
[1759988742457,3.34165025,4446.8,4446.6,1.16102]
[1759988742660,0.4047,4446.8,4446.7,0.544]
[1759988743061,3.34165025,4446.8,4446.7,0.7563]
[1759988743860,3.34165025,4446.8,4446.7,1.62334969]
[1759988743861,2.93695025,4446.8,4446.7,1.62334969]
[1759988744260,1.01158,4447.6,4446.9,0.7369]
[1759988744261,0.40468,4447.0,4446.9,0.7369]
[1759988744658,3.30855573,4447.0,4446.9,0.7369]
[1759988744958,2.90387573,4447.0,4446.9,0.7369]
[1759988745361,0.40467,4447.1,4447.0,0.5611]
[1759988745554,0.40467,4447.1,4447.0,0.872]
[1759988745758,3.35232631,4447.1,4447.0,0.872]
[1759988747465,2.94765631,4447.1,4447.0,0.872]
[1759988747856,3.37151391,4447.2,4447.1,0.5208]
[1759988748158,0.40467,4447.2,4447.1,1.36657]
[1759988748365,3.34261995,4447.2,4447.1,1.36657]
[1759988749767,3.34261995,4447.2,4447.1,0.9619]
[1759988752168,3.34261995,4447.2,4447.1,1.36657]
[1759988752467,3.34261995,4447.2,4447.1,0.9619]
[1759988754262,3.34261995,4447.2,4447.1,1.36657]
[1759988755574,3.34261995,4447.2,4447.1,0.5359]
[1759988756071,3.34261995,4447.2,4445.9,1.01196]
[1759988756072,1.01171,4447.0,4446.6,0.3109]
[1759988756269,0.40472,4446.6,4446.4,0.225]
[1759988756675,3.36206834,4446.6,4446.5,0.4489901]
[1759988759983,3.36206834,4446.6,4446.5,0.3133901]
[1759988760269,3.36206834,4446.6,4446.5,0.4484901]
[1759988761079,3.36206834,4446.6,4446.5,0.6583901]
[1759988762279,3.88488302,4446.6,4446.5,0.6583901]
[1759988763176,3.48016302,4446.6,4446.5,1.2792201]
[1759988763380,2.95734834,4446.6,4446.5,1.2792201]
[1759988764279,3.36206834,4446.6,4446.5,1.2792201]
[1759988764680,0.40472,4446.6,4446.5,1.2792201]
[1759988764986,3.39458034,4446.6,4446.5,1.2792201]
[1759988765186,2.98986034,4446.6,4446.5,1.2792201]
[1759988765382,3.39458034,4446.6,4446.5,1.2792201]
[1759988765684,0.40472,4446.6,4446.5,1.2792201]
[1759988765885,3.29904103,4446.6,4446.5,1.2792201]
[1759988768882,2.89432103,4446.6,4446.5,1.2792201]
[1759988769087,0.40467,4447.1,4447.0,0.95767]
[1759988769390,3.85652537,4447.1,4447.0,1.51317]
[1759988769688,0.92809434,4447.1,4447.0,1.51317]
[1759988770086,3.85652537,4447.1,4447.0,1.51317]
[1759988770592,3.45185537,4447.1,4447.0,1.51317]
[1759988770786,0.40465,4447.3,4447.2,1.16196]
[1759988771186,3.87463267,4447.3,4447.2,1.16196]
[1759988771684,3.35110146,4447.3,4447.2,1.16196]
[1759988772293,2.94645146,4447.3,4447.2,1.16196]
[1759988772586,0.40464,4447.5,4447.4,0.40464]
[1759988772783,0.928375,4447.5,4447.4,1.16194]
[1759988772988,3.81195218,4447.5,4447.4,1.16194]
[1759988773891,3.81195218,4447.5,4447.4,0.7573]
[1759988774495,3.81195218,4447.5,4447.4,1.16194]
[1759988774988,3.81191536,4447.5,4447.4,1.16194]
[1759988776085,3.81191536,4447.5,4447.4,0.7573]
[1759988777090,3.81191536,4447.5,4447.4,0.5555]
[1759988777991,3.81191536,4447.5,4447.4,0.7707]
[1759988782692,3.81191536,4447.5,4447.4,0.5555]
[1759988782888,3.81191536,4447.5,4446.5,2.01645979]
[1759988782889,0.40471,4446.7,4446.5,0.0024901]
[1759988783088,1.09204969,4446.6,4446.5,0.0024901]
[1759988783288,4.51671612,4446.6,4446.5,0.0024901]
[1759988783682,4.51671612,4446.6,4446.5,0.4591901]
[1759988786100,4.73199604,4446.6,4446.5,0.4591901]
[1759988790896,4.50699604,4446.6,4446.5,0.4591901]
[1759988791091,4.73199604,4446.6,4446.5,0.4591901]
[1759988791596,4.50699604,4446.6,4446.5,0.4591901]
[1759988792102,4.91171604,4446.6,4446.5,0.4591901]
[1759988796297,4.91171604,4446.6,4446.5,0.6743901]
[1759988797090,4.91171604,4446.6,4446.5,0.8859901]
[1759988797295,3.30604677,4446.6,4446.5,0.8859901]
[1759988803101,1.0116,4447.5,4446.6,0.3106]
[1759988803307,0.40464,4447.5,4447.4,0.4332]
[1759988803805,3.80352187,4447.5,4447.4,0.7589]
[1759988807598,3.80352187,4447.5,4447.4,1.16354]
[1759988807599,3.39888187,4447.5,4447.4,1.16354]
[1759988807900,0.40458,4448.1,4448.0,0.3593]
[1759988808198,3.32891345,4448.1,4448.0,0.9059]
[1759988808404,3.86545494,4448.1,4448.0,0.9059]
[1759988809401,3.32891345,4448.1,4448.0,0.9059]
[1759988810806,3.32891345,4448.1,4448.0,1.1309]
[1759988812512,2.92433345,4448.1,4448.0,1.1309]
[1759988812702,1.08232961,4449.3,4449.1,0.3257]
[1759988812898,0.94048458,4449.2,4449.1,0.5466]
[1759988813206,0.40448,4449.2,4449.1,0.7734]
[1759988818812,0.40448,4449.2,4449.1,0.3257]
[1759988819914,3.30161565,4449.2,4449.1,0.3257]
[1759988821707,3.30161565,4449.2,4449.0,0.1325]
[1759988821908,3.30161565,4449.2,4449.1,0.3257]
[1759988823002,4.38394526,4449.2,4449.1,0.3257]
[1759988827811,3.30161565,4449.2,4449.1,0.7734]
[1759988830109,2.89713565,4449.2,4449.1,1.17789]
[1759988830419,0.00172589,4449.4,4449.3,0.746]
[1759988830614,0.00172589,4449.4,4449.3,1.37547]
[1759988831014,0.40618589,4449.4,4449.3,1.37547]
[1759988831318,0.40618589,4449.4,4449.3,6.37547]
[1759988831926,0.40618589,4449.4,4449.3,5.971]
[1759988835215,0.40618589,4449.4,4449.3,6.37547]
[1759988836222,0.40618589,4449.4,4449.3,1.37547]
[1759988836420,0.40618589,4449.4,4449.3,0.971]
[1759988837125,0.40618589,4449.4,4449.3,1.37547]
[1759988840315,0.94299063,4449.4,4449.3,1.37547]
[1759988844322,0.94299063,4449.4,4449.3,1.15047]
[1759988844523,0.94299063,4449.4,4449.3,1.37547]
[1759988846029,0.94299063,4449.4,4449.3,0.971]
[1759988846230,3.89334949,4449.4,4449.3,0.5391]
[1759988847935,4.76064256,4449.4,4449.3,0.5391]
[1759988848227,4.76064256,4449.4,4449.3,0.3141]
[1759988850530,3.48888949,4449.4,4449.3,1.15047]
[1759988850929,3.89334949,4449.4,4449.3,1.15047]
[1759988855231,3.48888949,4449.4,4449.3,1.15047]
[1759988857936,0.53853063,4449.4,4449.3,1.15047]
[1759988858145,0.40437,4450.4,4450.3,0.746]
[1759988858447,3.81573367,4450.4,4450.3,0.971]
[1759988859144,3.81773416,4450.4,4450.3,0.97284868]
[1759988859939,3.81773416,4450.4,4450.3,1.37722868]
[1759988860349,3.8176246,4450.4,4450.3,0.97284868]
[1759988861951,3.8176246,4450.4,4450.3,0.54094868]
[1759988862646,3.8176246,4450.4,4450.3,0.76074868]
[1759988862850,3.8176246,4450.4,4450.3,0.53574868]
[1759988863251,3.8176246,4450.4,4450.3,0.75504868]
[1759988871950,3.8176246,4450.4,4450.3,1.15942868]
[1759988872352,3.4132546,4450.4,4450.3,1.15942868]
[1759988872751,2.87539769,4450.4,4450.3,1.15942868]
[1759988874761,3.27976769,4450.4,4450.3,1.15942868]
[1759988876953,2.87539769,4450.4,4450.3,1.15942868]
[1759988877954,3.27976769,4450.4,4450.3,1.15942868]
[1759988879761,2.87539769,4450.4,4450.3,1.15942868]
[1759988880755,3.27976769,4450.4,4450.3,1.15942868]
[1759988881555,2.87539769,4450.4,4450.3,1.15942868]
[1759988881752,3.27976769,4450.4,4450.3,1.15942868]
[1759988881954,3.27976769,4450.4,4450.3,0.75504868]
[1759988882361,3.27976769,4450.4,4450.3,1.15942868]
[1759988885158,2.87539769,4450.4,4450.3,1.15942868]
[1759988885559,3.27976769,4450.4,4450.3,1.15942868]
[1759988886058,3.27976769,4450.4,4450.3,0.93392868]
[1759988886365,3.27976769,4450.4,4450.3,1.14072868]
[1759988886965,3.81589695,4450.4,4450.3,0.54094868]
[1759988888261,3.27976769,4450.4,4450.3,1.36572868]
[1759988890367,3.27976769,4450.4,4450.3,0.96134868]
[1759988890756,3.27976769,4450.4,4450.3,1.36572868]
[1759988892166,3.81606197,4450.4,4450.3,1.36572868]
[1759988895468,3.27976769,4450.4,4450.3,1.36572868]
[1759988895668,3.81583475,4450.4,4450.3,1.36572868]
[1759988899771,3.41146475,4450.4,4450.3,1.36572868]
[1759988899967,3.41146475,4450.4,4450.3,7.23302175]
[1759988899968,0.53806755,4450.4,4450.3,7.23302175]
[1759988900177,0.40423,4452.0,4451.9,0.5429]
[1759988900374,0.40423,4452.0,4451.9,0.7679]
[1759988900375,0.94074274,4452.0,4451.9,0.7679]
[1759988900671,0.94074274,4452.0,4451.9,0.9827]
[1759988900672,3.49828469,4452.0,4451.9,0.9827]
[1759988901265,3.50100289,4452.0,4451.9,0.9827]
[1759988905167,2.96449015,4452.0,4451.9,0.9827]
[1759988908771,2.96449015,4452.0,4451.9,1.38694]
[1759988914785,3.36872015,4452.0,4451.9,1.38694]
[1759988915482,2.96449015,4452.0,4451.9,1.38694]
[1759988918184,3.36872015,4452.0,4451.9,1.38694]
[1759988918895,3.36872015,4452.0,4451.9,0.9827]
[1759988919085,3.36872015,4452.0,4451.9,0.3353]
[1759988919389,3.36872015,4452.0,4451.9,0.5603]
[1759988920284,3.89982094,4452.0,4451.9,0.5603]
[1759988921585,0.40426,4451.6,4451.5,0.1357]
[1759988921791,1.48348449,4451.6,4451.5,0.1357]
[1759988921984,4.39226633,4451.6,4451.5,0.1357]
[1759988922190,4.39226633,4451.6,4451.5,0.4701]
[1759988923883,4.39226633,4451.6,4451.5,0.6976]
[1759988925688,4.39226633,4451.6,4451.5,0.4701]
[1759988926289,4.92298438,4451.6,4451.5,0.4701]
[1759988930292,4.92298438,4451.6,4451.5,0.6829]
[1759988934991,4.92298438,4451.6,4451.5,1.08717]
[1759988940205,4.51872438,4451.6,4451.5,1.08717]
[1759988941002,4.92298438,4451.6,4451.5,1.08717]
[1759988942806,3.43949989,4451.6,4451.5,1.08717]
[1759988943006,3.43949989,4451.6,4451.5,1.31077]
[1759988944611,3.84375989,4451.6,4451.5,1.08717]
[1759988944808,3.84375989,4451.6,4451.5,0.4701]
[1759988946415,3.84375989,4451.6,4451.5,0.87437]
[1759988947912,3.84375989,4451.6,4451.5,1.08717]
[1759988951715,3.84375989,4451.6,4451.5,1.31077]
[1759988951905,0.40431,4451.1,4451.0,0.1357]
[1759988952109,1.48353449,4451.1,4451.0,0.1357]
[1759988952317,4.87130166,4451.1,4451.0,0.1357]
[1759988952511,4.87130166,4451.1,4451.0,0.4629]
[1759988952706,4.46699166,4451.1,4451.0,1.09322]
[1759988952909,4.87130166,4451.1,4451.0,1.09322]
[1759988953311,3.79207717,4451.1,4451.0,1.31872]
[1759988953521,3.38776717,4451.1,4451.0,1.31872]
[1759988954517,0.40425,4451.8,4451.7,0.63025]
[1759988954823,3.33350916,4451.8,4451.7,1.18295]
[1759988956027,3.33350916,4451.8,4451.7,0.7787]
[1759988956322,2.92925916,4451.8,4451.7,1.18295]
[1759988956728,3.26993716,4451.9,4451.8,0.95744]
[1759988956920,0.40424,4451.9,4451.8,0.95744]
[1759988957221,3.3162314,4451.9,4451.8,0.5532]
[1759988957927,3.3162314,4451.9,4451.8,0.3272]
[1759988958321,3.3162314,4451.9,4451.8,0.5532]
[1759988964433,3.3162314,4451.9,4451.8,0.7787]
[1759988964623,3.3162314,4451.9,4451.8,1.18294]
[1759988964826,2.9119914,4451.9,4451.8,1.18294]
[1759988966531,3.44311403,4451.9,4451.8,1.18294]
[1759988969235,0.0027182,4452.0,4451.9,1.18294]
[1759988969435,0.53377596,4452.0,4451.9,1.18294]
[1759988969837,0.53377596,4452.0,4451.9,2.04885922]
[1759988970137,0.0027182,4452.0,4451.9,2.04885922]
[1759988970927,0.0027182,4452.0,4451.9,7.04885922]
[1759988971435,0.022,4452.9,4452.8,0.85565]
[1759988971635,0.022,4452.9,4452.8,2.27376922]
[1759988972540,0.02483629,4452.9,4452.8,2.27376922]
[1759988973736,0.02483629,4452.9,4452.8,1.40785]
[1759988976140,0.02483629,4452.9,4452.8,1.0037]
[1759988979740,0.42898629,4452.9,4452.8,1.40785]
[1759988980442,0.42898629,4452.9,4452.8,1.0037]
[1759988981245,3.41355693,4452.9,4452.8,0.7782]
[1759988983740,3.41355693,4452.9,4452.8,0.9968]
[1759988985544,4.27947615,4452.9,4452.8,0.9968]
[1759988989247,3.41355693,4452.9,4452.8,1.40095]
[1759989000560,3.9449094,4452.9,4452.8,1.40095]
[1759989000858,3.9449094,4452.9,4452.8,0.9968]
[1759989002257,3.9449094,4452.9,4452.8,1.40095]
[1759989002751,3.9449094,4452.9,4452.8,0.9968]
[1759989003558,3.9449094,4452.9,4452.8,1.40095]
[1759989003956,3.9449094,4452.9,4452.8,0.9968]
[1759989004559,3.9449094,4452.9,4452.8,1.40095]
[1759989007957,3.5407594,4452.9,4452.8,1.40095]
[1759989009350,3.9449094,4452.9,4452.8,1.40095]
[1759989013966,3.9449094,4452.9,4452.8,1.17595]
[1759989014265,3.9449094,4452.9,4452.8,1.40095]
[1759989015865,3.5407594,4452.9,4452.8,1.40095]
[1759989016265,3.9449094,4452.9,4452.8,1.40095]
[1759989016968,3.5407594,4452.9,4452.8,1.40095]
[1759989020970,3.5407594,4452.9,4452.8,0.3272]
[1759989020971,3.9449094,4452.9,4452.8,0.3272]
[1759989021170,3.9449094,4452.9,4452.8,0.5522]
[1759989021670,3.9449094,4452.9,4452.8,0.7743]
[1759989022871,3.9449094,4452.9,4452.8,0.5522]
[1759989029683,3.9449094,4452.9,4452.8,0.95635]
[1759989030983,3.5407594,4452.9,4452.8,1.17845]
[1759989031485,3.5407594,4452.9,4452.8,1.40345]
[1759989032084,3.9449094,4452.9,4452.8,1.40345]
[1759989033686,3.5407594,4452.9,4452.8,1.40345]
[1759989033986,3.9449094,4452.9,4452.8,1.40345]
[1759989034784,3.9449094,4452.9,4452.8,0.9993]
[1759989035788,3.9449094,4452.9,4452.8,0.7743]
[1759989036190,3.9449094,4452.9,4452.8,0.5522]
[1759989039792,3.9449094,4452.9,4452.8,1.17845]
[1759989039989,3.9449094,4452.9,4452.8,1.39445]
[1759989044593,3.9449094,4452.9,4452.8,0.9903]
[1759989045291,5.0238414,4452.9,4452.8,0.5522]
[1759989046596,5.0238414,4452.9,4452.8,1.16705]
[1759989046796,5.0238414,4452.9,4452.8,0.975]
[1759989049298,5.0238414,4452.9,4452.8,0.7629]
[1759989051800,5.0238414,4452.9,4452.8,0.5522]
[1759989051997,5.0238414,4452.9,4451.9,2.089522]
[1759989051998,0.59461,4452.3,4452.2,0.4042]
[1759989052205,0.90401,4452.3,4452.2,0.4042]
[1759989052401,4.37292009,4452.3,4452.2,0.6149]
[1759989054099,4.37292009,4452.3,4452.2,0.9497]
[1759989054400,4.37292009,4452.3,4452.2,0.94971]
[1759989055703,3.65931009,4452.3,4452.2,1.16181]
[1759989055902,3.53273534,4452.3,4452.2,1.16181]
[1759989056399,0.40424,4451.9,4451.8,0.3348]
[1759989056605,0.90404,4451.9,4451.8,0.5598]
[1759989056904,3.77114134,4451.9,4451.8,0.7705]
[1759989057101,2.98610134,4451.9,4451.8,1.38684]
[1759989057501,0.3808,4452.3,4452.2,1.16181]
[1759989057701,0.91140088,4452.3,4452.2,1.16181]
[1759989057900,4.17220321,4452.3,4452.2,1.16181]
[1759989058101,4.17220321,4452.3,4452.2,0.7576]
[1759989058302,4.17220321,4452.3,4452.2,1.16181]
[1759989060705,4.17220321,4452.3,4452.2,0.7576]
[1759989060909,0.78502,4452.1,4452.0,0.3348]
[1759989061111,1.43462088,4452.1,4452.0,0.3348]
[1759989061313,4.34721964,4452.1,4452.0,0.5598]
[1759989062202,0.4998,4451.7,4451.6,0.73906]
[1759989062406,0.4998,4451.7,4451.6,0.96406]
[1759989062711,3.81256954,4451.7,4451.6,0.5598]
[1759989063111,3.81256954,4451.7,4451.6,0.96406]
[1759989063312,3.81256954,4451.7,4451.6,0.94976]
[1759989063512,3.69356954,4451.7,4451.6,1.17476]
[1759989063907,3.69356954,4451.7,4451.6,0.7705]
[1759989064114,3.81256954,4451.7,4451.6,0.7705]
[1759989064414,3.81256954,4451.7,4451.6,0.5598]
[1759989065112,3.81256954,4451.7,4451.0,0.1357]
[1759989065315,0.4998,4451.1,4451.0,0.4705]
[1759989065519,0.4998,4451.1,4451.0,0.6955]
[1759989066413,3.47513693,4451.1,4451.0,0.5598]
[1759989066815,3.47513693,4451.1,4451.0,0.684]
[1759989067616,3.47513693,4451.1,4451.0,0.8947]
[1759989067915,3.35613693,4451.1,4451.0,1.1068]
[1759989068917,3.47603693,4451.1,4451.0,0.684]
[1759989069217,3.35613693,4451.1,4451.0,1.1075]
[1759989070707,1.01068,4451.6,4451.5,0.95657]
[1759989070708,0.1918,4451.6,4451.5,0.95657]
[1759989070912,0.1918,4451.6,4451.5,1.27187]
[1759989071112,3.17174509,4451.6,4451.5,1.27187]
[1759989071819,3.36354509,4451.6,4451.5,1.27187]
[1759989073417,3.36354509,4451.6,4451.5,1.49687]
[1759989074316,3.36354509,4451.6,4451.5,1.0926]
[1759989074715,3.48344509,4451.6,4451.5,0.5403]
[1759989074914,3.48344509,4451.6,4451.5,0.225]
[1759989075115,3.48344509,4451.6,4451.5,0.5403]
[1759989075322,3.48344509,4451.6,4451.5,0.6691]
[1759989075912,3.48344509,4451.6,4451.5,0.8779]
[1759989076113,3.76780509,4451.6,4451.5,0.8779]
[1759989078022,3.76780509,4451.6,4451.5,1.49687]
[1759989078222,3.76780509,4451.6,4451.5,1.0926]
[1759989081821,3.88770509,4451.6,4451.5,0.8779]
[1759989084023,3.88770509,4451.6,4451.0,0.1242]
[1759989084024,1.16121,4451.1,4451.0,0.40432]
[1759989084223,1.16121,4451.1,4451.0,0.83812]
[1759989084526,1.16121,4451.1,4451.0,1.18162]
[1759989085930,4.08634186,4451.1,4451.0,0.225]
[1759989087225,4.08634186,4451.1,4451.0,0.5403]
[1759989087521,4.08634186,4451.1,4451.0,1.15342]
[1759989088121,4.08634186,4451.1,4451.0,0.7491]
[1759989088531,4.08634186,4451.1,4451.0,1.15342]
[1759989090627,4.08634186,4451.1,4451.0,1.18412511]
[1759989090934,4.08634186,4451.1,4451.0,1.52762511]
[1759989094026,0.98539112,4451.5,4451.0,1.52762511]
[1759989094027,0.62188,4451.5,4451.4,0.4235]
[1759989094232,1.15364046,4451.5,4451.4,0.7388]
[1759989094438,4.01762057,4451.5,4451.4,0.7388]
[1759989094642,4.01762057,4451.5,4451.4,0.76950511]
[1759989094936,4.01762057,4451.5,4451.4,1.17378511]
[1759989095132,4.55692057,4451.5,4451.4,1.17378511]
[1759989098134,4.67592057,4451.5,4451.4,0.03070511]
[1759989113038,4.67592057,4451.5,4451.4,0.43498511]
[1759989115144,4.67592057,4451.5,4451.4,0.03070511]
[1759989116046,4.67592057,4451.5,4451.4,0.43498511]
[1759989116641,4.67592057,4451.5,4451.4,0.03070511]
[1759989117848,4.67592057,4451.5,4450.4,0.40437]
[1759989117849,0.7806,4450.5,4450.4,0.40437]
[1759989118147,3.68127043,4450.5,4450.4,0.94347]
[1759989118351,3.68127043,4450.5,4450.4,1.16107]
[1759989119948,3.68127043,4450.5,4450.4,1.38107]
[1759989120842,0.5613,4451.2,4451.1,0.22]
[1759989121043,1.7173357,4451.2,4451.1,1.15601]
[1759989121243,4.64093551,4451.2,4451.1,1.15601]
[1759989121446,4.64093551,4451.2,4451.1,0.93601]
[1759989122054,4.64093551,4451.2,4451.1,0.71841]
[1759989122949,5.50732663,4451.2,4451.1,0.71841]
[1759989125755,5.50732663,4451.2,4451.1,0.40431]
[1759989127352,0.7806,4450.7,4450.4,0.225]
[1759989127552,0.7806,4450.6,4450.5,0.40436]
[1759989127761,5.49109219,4450.6,4450.5,0.62936]
[1759989128056,2.58361958,4450.6,4450.5,0.62936]
[1759989128360,5.08674219,4450.6,4450.5,0.94346]
[1759989129055,4.22035107,4450.6,4450.5,0.94346]
[1759989129455,4.62470107,4450.6,4450.5,0.94346]
[1759989129958,4.22035107,4450.6,4450.5,0.94346]
[1759989130258,4.62470107,4450.6,4450.5,0.225]
[1759989130459,4.62470107,4450.6,4450.5,0.95106]
[1759989130655,4.22035107,4450.6,4450.5,0.95106]
[1759989131358,4.22035107,4450.6,4450.5,1.17376]
[1759989131955,4.62470107,4450.6,4450.5,1.17376]
[1759989132656,4.62470107,4450.6,4450.5,0.225]
[1759989133255,0.95136,4450.5,4450.4,0.40437]
[1759989133455,2.12785112,4450.5,4450.4,0.62937]
[1759989133652,5.05625992,4450.5,4450.4,0.62937]
[1759989133856,5.58810964,4450.5,4450.4,0.62937]
[1759989134353,5.58810964,4450.5,4450.3,0.00184868]
[1759989134354,1.15607,4450.4,4450.3,0.00184868]
[1759989134756,4.01747872,4450.4,4450.3,0.00184868]
[1759989134952,4.54926906,4450.4,4450.3,0.00184868]
[1759989136658,0.8707,4449.5,4449.4,0.40446]
[1759989137164,3.73789096,4449.5,4449.4,0.72616]
[1759989137555,3.7399606,4449.5,4449.4,0.72853719]
[1759989137757,3.7399606,4449.5,4449.4,0.40683719]
[1759989137954,3.6209606,4449.5,4449.4,0.95123719]
[1759989138154,3.6209606,4449.5,4449.4,1.17713719]
[1759989141162,1.15609,4450.2,4450.1,0.7703]
[1759989141559,4.09273379,4450.2,4450.1,0.7703]
[1759989142053,3.37824379,4450.2,4450.1,2.04109112]
[1759989142263,3.38044389,4450.2,4450.1,2.04109112]
[1759989142962,0.0022001,4450.2,4450.1,2.04109112]
[1759989143662,0.84592,4451.0,4450.9,0.85292]
[1759989143964,4.62477567,4451.0,4450.9,1.39962]
[1759989144554,4.62701324,4451.0,4450.9,1.39962]
[1759989144758,4.22269324,4451.0,4450.9,1.39962]
[1759989145959,4.22269324,4451.0,4450.9,1.39963]
[1759989146164,4.22269324,4451.0,4450.9,0.7694]
[1759989148073,4.22269324,4451.0,4450.9,0.5467]
[1759989148374,4.32809324,4451.0,4450.9,0.225]
[1759989149174,4.73241324,4451.0,4450.9,0.62933]
[1759989149569,4.73241324,4451.0,4450.9,0.95103]
[1759989149976,4.73241324,4451.0,4450.9,0.5467]
[1759989150871,4.73241324,4451.0,4450.9,0.225]
[1759989152075,0.40439,4450.2,4450.1,0.4044]
[1759989152376,0.7517,4449.8,4449.7,0.7703]
[1759989152567,0.7517,4449.8,4449.7,1.39974]
[1759989153474,0.4416,4449.8,4449.7,1.39974]
[1759989154076,0.7517,4449.8,4449.7,1.39974]
[1759989157482,3.66351364,4449.8,4449.7,1.17384]
[1759989158275,4.06794364,4449.8,4449.7,1.17384]
[1759989159277,4.06794364,4449.8,4449.7,1.39974]
[1759989159974,3.66351364,4449.8,4449.7,1.39974]
[1759989160178,3.35341364,4449.8,4449.7,1.39974]
[1759989160779,0.1054,4450.5,4449.7,1.39974]
[1759989160780,0.62408,4450.4,4450.3,1.15607]
[1759989160981,0.2197,4450.4,4450.3,1.38107]
[1759989161169,3.73844741,4450.4,4450.3,1.38107]
[1759989161375,3.73844741,4450.4,4450.3,1.17027]
[1759989161573,4.14281741,4450.4,4450.3,1.17027]
[1759989163481,4.67570163,4450.4,4450.3,1.17027]
[1759989164077,4.67570163,4450.4,4450.3,0.62937]
[1759989168378,4.27133163,4450.4,4450.3,0.62937]
[1759989168584,4.27133163,4450.4,4450.3,1.16057]
[1759989168883,4.27133163,4450.4,4450.3,1.38917]
[1759989170985,4.67570163,4450.4,4450.3,1.38917]
[1759989172283,4.67570163,4450.4,4450.3,1.16057]
[1759989172788,4.27133163,4450.4,4450.3,0.94998]
[1759989172984,4.27133163,4450.4,4450.3,1.16058]
[1759989173184,4.67570163,4450.4,4450.3,1.16058]
[1759989176689,4.67570163,4450.4,4450.3,0.7562]
[1759989176989,4.67570163,4450.4,4450.3,0.5456]
[1759989178389,4.67570163,4450.4,4450.3,0.225]
[1759989179691,4.67570163,4450.4,4450.3,0.62938]
[1759989182595,4.67570163,4450.4,4450.3,0.225]
[1759989183191,0.83519,4450.2,4450.1,0.3206]
[1759989183490,0.83519,4450.2,4450.1,0.95]
[1759989183491,4.56168451,4450.2,4450.1,0.95]
[1759989183891,4.56168451,4450.2,4450.1,0.6294]
[1759989185091,4.56168451,4450.2,4450.1,0.225]
[1759989185296,5.64192224,4450.2,4450.1,0.225]
[1759989185492,0.4308,4449.5,4449.4,0.53357719]
[1759989185699,0.7598,4449.5,4449.4,0.95243719]
[1759989185893,3.73554842,4449.5,4449.4,0.95243719]
[1759989186398,4.13999842,4449.5,4449.4,0.95243719]
[1759989186593,3.73554842,4449.5,4449.4,0.95243719]
[1759989187190,3.73554842,4449.5,4449.4,1.16303719]
[1759989187391,3.73554842,4449.5,4449.4,1.39163719]
[1759989187897,3.40654842,4449.5,4449.4,1.39163719]
[1759989188091,3.73554842,4449.5,4449.4,1.39163719]
[1759989191995,3.40654842,4449.5,4449.4,1.39163719]
[1759989192392,3.18524842,4449.5,4449.4,1.39163719]
[1759989192598,0.7615,4450.1,4450.0,1.30221]
[1759989192798,1.69854054,4450.1,4450.0,1.52721]
[1759989193001,4.68442203,4450.1,4450.0,1.52721]
[1759989193603,4.68442203,4450.1,4450.0,1.1228]
[1759989193900,4.68442203,4450.1,4450.0,1.52721]
[1759989195200,4.28002203,4450.1,4450.0,1.52721]
[1759989195399,3.94792203,4450.1,4450.0,1.52721]
[1759989195601,3.73962203,4450.1,4450.0,1.52721]
[1759989197000,0.3321,4450.8,4450.7,0.40433]
[1759989197200,1.16584,4450.8,4450.7,1.39323]
[1759989197403,4.67912475,4450.8,4450.7,1.39323]
[1759989198300,4.67912475,4450.8,4450.7,0.5479]
[1759989198604,4.67912475,4450.8,4450.7,0.225]
[1759989199399,4.27478475,4450.8,4450.7,1.17584]
[1759989199704,4.67912475,4450.8,4450.7,1.17584]